bitfinex-derivatives/quotes_BNBF0:USTF0_20250330
["timestamp","ask_amount","ask_price","bid_price","bid_amount"]
[1743352526963,1.54185492,601.78,600.64,0.28941995]
[1743352527370,1.54185492,601.78,600.63,0.3329837]
[1743352527569,1.54185492,601.78,600.64,0.28942597]
[1743352527866,0.33234736,601.78,600.64,0.28942597]
[1743352530374,0.33234736,601.78,600.63,0.3329837]
[1743352530569,0.33234736,601.78,600.64,0.2893995]
[1743352532173,1.187,601.77,600.64,0.2893995]
[1743352533376,1.187,601.77,600.63,0.3329837]
[1743352533575,1.187,601.77,600.64,0.28940792]
[1743352534376,1.187,601.77,600.65,0.33297261]
[1743352534875,2.3923773,601.77,600.65,0.33297261]
[1743352535875,1.2053773,601.76,600.65,0.33297261]
[1743352536877,2.3923773,601.77,600.65,0.33297261]
[1743352539279,1.592,601.76,600.65,0.33297261]
[1743352541679,2.7973773,601.76,600.65,0.33297261]
[1743352542582,1.592,601.76,600.65,0.33297261]
[1743352547779,1.533,601.75,600.65,0.33297261]
[1743352551679,1.533,601.75,600.72,2.5305137]
[1743352553584,1.533,601.75,600.74,2.5305137]
[1743352554684,1.533,601.75,600.68,2.81992282]
[1743352555383,1.414,601.74,600.68,2.81992282]
[1743352556082,1.414,601.74,600.69,2.5305137]
[1743352557387,1.414,601.74,600.68,0.28940912]
[1743352560390,1.414,601.74,600.68,2.5305137]
[1743352560592,1.414,601.74,600.68,2.81992523]
[1743352561595,1.414,601.74,600.68,0.28941153]
[1743352561992,1.514,601.73,600.68,0.28941153]
[1743352563291,1.514,601.73,600.65,0.33297261]
[1743352563688,1.514,601.73,600.68,0.28938385]
[1743352563890,1.514,601.73,600.69,0.33295044]
[1743352564190,1.668,601.72,600.69,0.33295044]
[1743352571002,1.055,601.71,600.69,0.33295044]
[1743352583713,1.542,601.7,600.69,0.33295044]
[1743352584417,3.029,601.7,600.69,0.33295044]
[1743352599319,4.319,601.7,600.69,0.33295044]
[1743352601322,4.319,601.7,600.69,2.86346414]
[1743352603228,4.319,601.7,600.79,2.5305137]
[1743352603528,4.319,601.7,600.8,0.33288948]
[1743352605530,4.319,601.7,600.8,2.86340318]
[1743352607729,4.319,601.7,601.02,2.5305137]
[1743352609327,4.319,601.7,601.08,2.5305137]
[1743352610030,5.972,601.7,601.08,2.5305137]
[1743352610729,5.972,601.7,600.97,2.5305137]
[1743352612630,5.972,601.7,600.94,2.5305137]
[1743352612832,5.972,601.7,600.94,2.86332562]
[1743352614331,5.972,601.7,600.94,0.33281192]
[1743352618336,5.972,601.7,600.97,2.5305137]
[1743352618533,5.972,601.7,600.98,0.33278977]
[1743352623235,5.972,601.7,600.99,2.5305137]
[1743352624238,5.972,601.7,600.98,0.33278977]
[1743352633545,5.972,601.7,601.06,2.5305137]
[1743352635251,5.972,601.7,601.08,2.5305137]
[1743352636650,5.972,601.7,601.01,0.28929003]
[1743352638348,5.972,601.7,600.98,0.33278977]
[1743352638553,5.972,601.7,601.01,0.28934054]
[1743352641461,5.972,601.7,600.68,2.5305137]
[1743352641658,5.972,601.7,601.01,0.28939468]
[1743352641852,5.972,601.7,600.68,2.5305137]
[1743352642760,5.972,601.7,600.69,0.28940792]
[1743352644161,5.972,601.7,600.62,2.5305137]
[1743352644357,0.33239708,601.69,600.62,2.5305137]
[1743352644756,3.04283236,601.69,600.45,2.5305137]
[1743352644963,1.54118726,601.69,600.45,2.5305137]
[1743352645557,1.54118726,601.69,600.46,0.28948977]
[1743352646064,0.33239708,601.69,600.47,0.33307242]
[1743352647863,1.60639708,601.69,600.47,0.33307242]
[1743352648266,2.99439708,601.69,600.47,0.33307242]
[1743352648861,4.18939708,601.69,600.47,0.33307242]
[1743352649067,3.90449665,601.68,600.47,0.33307242]
[1743352649365,4.80494929,601.67,600.47,0.33307242]
[1743352649563,4.80494929,601.66,600.47,0.33307242]
[1743352649760,0.90832401,601.65,600.47,0.33307242]
[1743352650167,1.80437115,601.64,600.47,0.33307242]
[1743352650462,1.80438014,601.63,600.47,0.33307242]
[1743352650664,1.49870203,601.62,600.47,0.33307242]
[1743352650860,1.83114331,601.61,600.47,0.33307242]
[1743352651063,0.3324468,601.6,600.47,0.33307242]
[1743352651764,1.20879018,601.59,600.47,0.33307242]
[1743352652662,0.3324468,601.6,600.47,0.33307242]
[1743352652663,1.54124804,601.58,600.47,0.33307242]
[1743352652860,0.33246338,601.57,600.47,0.33307242]
[1743352653060,1.54125356,601.57,600.47,0.33307242]
[1743352653664,2.70749221,601.56,600.47,0.33307242]
[1743352653868,4.22909972,601.55,600.47,0.33307242]
[1743352654067,5.1353202,601.54,600.47,0.33307242]
[1743352654271,5.46816531,601.53,600.47,0.33307242]
[1743352654471,5.80065633,601.52,600.47,0.33307242]
[1743352654673,5.80066186,601.51,600.47,0.33307242]
[1743352654869,5.80066738,601.5,600.47,0.33307242]
[1743352655068,5.79995116,601.49,600.47,0.33307242]
[1743352655273,5.46744356,601.48,600.47,0.33307242]
[1743352655474,5.46744356,601.47,600.47,0.33307242]
[1743352655675,5.46744356,601.46,600.47,0.33307242]
[1743352655974,5.46744356,601.45,600.47,0.33307242]
[1743352656174,5.46744356,601.44,600.47,0.33307242]
[1743352656370,5.46744356,601.43,600.47,0.33307242]
[1743352656575,5.46744356,601.42,600.47,0.33307242]
[1743352656878,5.78244328,601.41,600.47,0.33307242]
[1743352657076,4.54439824,601.4,600.47,0.33307242]
[1743352657279,4.87696113,601.39,600.47,0.33307242]
[1743352657479,4.54439824,601.38,600.47,0.33307242]
[1743352657678,4.54439824,601.37,600.47,0.33307242]
[1743352657878,4.54439824,601.36,600.47,0.33307242]
[1743352658079,4.54438426,601.35,600.47,0.33307242]
[1743352658279,4.54438426,601.34,600.47,0.33307242]
[1743352658479,4.54438836,601.33,600.47,0.33307242]
[1743352658678,3.87890851,601.32,600.47,0.33307242]
[1743352658878,3.80827142,601.33,600.47,0.33307242]
[1743352658879,3.87890851,601.31,600.47,0.33307242]
[1743352659080,3.87890851,601.3,600.47,0.33307242]
[1743352659380,3.87890851,601.29,600.47,0.33307242]
[1743352659574,3.87890851,601.28,600.47,0.33307242]
[1743352659879,3.87890851,601.27,600.47,0.33307242]
[1743352660178,3.87890851,601.26,600.47,0.33307242]
[1743352660379,3.87890851,601.25,600.47,0.33307242]
[1743352660579,3.87330562,601.24,600.46,0.28959336]
[1743352660776,3.14295077,601.26,600.46,0.28959336]
[1743352660777,3.87330562,601.23,600.46,0.28959336]
[1743352660973,3.87330562,601.22,600.46,0.28959336]
[1743352661177,3.87330562,601.21,600.46,0.28959336]
[1743352661373,3.87330562,601.2,600.46,0.28959336]
[1743352661574,3.87330562,601.19,600.46,0.28959336]
[1743352661780,1.49188789,601.18,600.46,0.28959336]
[1743352661982,1.49188789,601.17,600.46,0.28959336]
[1743352662184,1.49188789,601.16,600.46,0.28959336]
[1743352662382,1.49188789,601.15,598.93,2.5305137]
[1743352662585,1.49188789,601.14,598.93,2.5305137]
[1743352662791,1.49188789,601.13,599.04,0.33386752]
[1743352662978,1.49188789,601.12,599.04,0.33386752]
[1743352663181,1.49188789,601.11,599.04,0.33386752]
[1743352663384,1.49188789,601.1,599.04,0.33386752]
[1743352663677,1.49188789,601.09,599.07,2.5305137]
[1743352663882,1.49188789,601.08,599.17,0.33379508]
[1743352664184,2.37774101,601.17,599.17,0.33379508]
[1743352664386,3.86336265,601.16,599.17,0.33379508]
[1743352664589,3.86224012,601.15,599.17,0.33379508]
[1743352664785,3.86224012,601.14,599.17,0.33379508]
[1743352664986,3.86224012,601.13,599.17,0.33379508]
[1743352665186,1.48547697,601.12,599.17,0.33379508]
[1743352665381,1.48547697,601.11,599.17,0.33379508]
[1743352665590,1.48547697,601.1,599.17,0.33379508]
[1743352665785,1.48547697,601.09,599.17,0.33379508]
[1743352665982,1.48547697,601.08,599.17,0.33379508]
[1743352666286,1.48467042,601.07,599.17,0.33379508]
[1743352666588,1.399,601.08,599.17,0.33379508]
[1743352669093,2.754,601.08,599.17,0.33379508]
[1743352670093,2.754,601.08,599.46,2.5305137]
[1743352670290,2.754,601.08,599.48,0.33362247]
[1743352672092,2.754,601.08,599.55,2.5305137]
[1743352672295,2.754,601.08,599.57,0.33357239]
[1743352673487,2.754,601.08,599.64,2.5305137]
[1743352673693,2.754,601.08,599.66,0.33352232]
[1743352675489,2.754,601.08,599.7,2.5305137]
[1743352675694,2.754,601.08,599.72,0.33348896]
[1743352680898,2.754,601.08,599.75,2.5305137]
[1743352681197,2.754,601.08,599.77,0.33346116]
[1743352681794,3.93,601.08,599.77,0.33346116]
[1743352682798,3.93,601.08,599.96,2.5305137]
[1743352683598,3.93,601.08,599.98,0.33334444]
[1743352685998,3.93,601.08,599.98,2.86385814]
[1743352686795,3.93,601.08,599.98,0.33334444]
[1743352691004,3.93,601.08,599.99,2.5305137]
[1743352691713,3.93,601.08,600.01,0.33332777]
[1743352692418,3.93,601.08,600.21,2.5305137]
[1743352692610,3.93,601.08,600.23,0.3332056]
[1743352694110,3.93,601.08,600.23,2.8637193]
[1743352695506,3.93,601.08,600.3,2.5305137]
[1743352695712,3.93,601.08,600.31,0.3331612]
[1743352697911,3.93,601.08,600.33,2.5305137]
[1743352698510,3.93,601.08,600.34,0.33314455]
[1743352699605,3.93,601.08,600.39,2.5305137]
[1743352700011,3.93,601.08,600.4,0.33311125]
[1743352704813,5.169,601.08,600.4,0.33311125]
[1743352708320,5.169,601.08,600.49,2.5305137]
[1743352709519,5.169,601.08,600.4,0.33311125]
[1743352709520,5.169,601.08,600.5,2.5305137]
[1743352711215,5.169,601.08,600.6,2.5305137]
[1743352712521,5.169,601.08,600.4,0.33311125]
[1743352712522,5.169,601.08,600.49,2.5305137]
[1743352715526,5.169,601.08,600.63,2.5305137]
[1743352717128,5.169,601.08,600.64,2.5305137]
[1743352718330,5.169,601.08,600.5,0.2895512]
[1743352719331,5.169,601.08,600.43,2.5305137]
[1743352719830,5.169,601.08,600.5,0.28957288]
[1743352722430,5.169,601.08,600.4,0.33311125]
[1743352722631,5.169,601.08,600.59,2.5305137]
[1743352724030,5.169,601.08,600.76,2.5305137]
[1743352725533,5.169,601.08,600.77,2.5305137]
[1743352726734,5.169,601.08,600.63,0.28951386]
[1743352726735,5.169,601.08,600.69,2.5305137]
[1743352728134,5.169,601.08,600.75,2.5305137]
[1743352729337,5.169,601.08,600.68,0.28949339]
[1743352731338,5.169,601.08,600.4,0.33311125]
[1743352731734,5.169,601.08,600.68,0.28952349]
[1743352731938,5.169,601.08,600.4,0.33311125]
[1743352732741,5.169,601.08,600.41,0.28957168]
[1743352732936,5.169,601.08,600.42,0.33310016]
[1743352736841,5.169,601.08,600.58,2.5305137]
[1743352737041,5.169,601.08,600.59,0.33300587]
[1743352737244,2.53430618,601.08,600.59,0.33300587]
[1743352737643,2.415,601.08,600.59,0.33300587]
[1743352737838,0.28945606,602.13,600.59,0.33300587]
[1743352738041,0.3321597,602.12,600.59,0.33300587]
[1743352738641,0.3321597,602.12,600.76,2.5305137]
[1743352738843,0.3321597,602.12,600.77,0.3329061]
[1743352740145,1.699,602.11,600.79,2.5305137]
[1743352740543,0.33217073,602.1,600.79,2.5305137]
[1743352740743,0.33217073,602.1,600.79,2.86340872]
[1743352741440,0.33217073,602.1,600.79,0.33289502]
[1743352741645,1.21,602.09,600.79,0.33289502]
[1743352742645,0.33218176,602.08,600.79,0.33289502]
[1743352743542,1.46818176,602.08,600.79,0.33289502]
[1743352743943,2.64734331,602.08,600.79,0.33289502]
[1743352744247,4.15752363,602.08,600.79,0.33289502]
[1743352745148,6.09408021,602.08,600.79,0.33289502]
[1743352745343,1.51018032,602.07,600.79,0.33289502]
[1743352745544,0.3321928,602.06,600.79,0.33289502]
[1743352753262,1.207,602.05,600.79,0.33289502]
[1743352768778,1.609,602.04,600.79,0.33289502]
[1743352771278,1.34,602.03,600.79,0.33289502]
[1743352773376,1.34,602.03,600.85,2.5305137]
[1743352773582,1.34,602.03,600.87,0.33285069]
[1743352773776,1.559,602.02,600.87,0.33285069]
[1743352777686,1.559,602.02,600.89,2.5305137]
[1743352777881,1.559,602.02,600.91,0.33282854]
[1743352778080,1.39,602.01,600.91,0.33282854]
[1743352779181,1.39,602.01,600.92,2.5305137]
[1743352779381,1.39,602.01,600.94,0.33281192]
[1743352780380,1.39,602.01,601.02,2.5305137]
[1743352780782,1.39,602.01,601.03,0.33276209]
[1743352784886,1.39,602.01,601.06,2.5305137]
[1743352785088,1.39,602.01,601.07,0.33273994]
[1743352786787,1.39,602.01,601.11,2.5305137]
[1743352787083,1.39,602.01,601.12,0.33271227]
[1743352787589,1.39,602.01,601.13,2.5305137]
[1743352787785,1.39,602.01,601.14,0.3327012]
[1743352788489,1.39,602.01,601.15,2.5305137]
[1743352788686,1.39,602.01,601.16,0.33269013]
[1743352790191,1.39,602.01,601.23,2.5305137]
[1743352790491,1.39,602.01,601.24,0.33264586]
[1743352791389,1.194,602.0,601.24,0.33264586]
[1743352795198,1.524,601.99,601.24,0.33264586]
[1743352795392,3.29,601.99,601.24,0.33264586]
[1743352801806,3.29,601.99,601.24,2.86315956]
[1743352803406,3.29,601.99,601.28,2.5305137]
[1743352803600,3.29,601.99,601.29,0.3326182]
[1743352807109,3.29,601.99,601.3,2.5305137]
[1743352807501,3.29,601.99,601.31,0.33260714]
[1743352809511,1.02071673,602.0,601.31,0.33260714]
[1743352810609,1.02071673,602.0,601.61,2.5305137]
[1743352811111,1.39,602.01,601.61,2.5305137]
[1743352812314,1.39,602.01,601.31,0.33260714]
[1743352819920,1.39,602.01,601.32,2.5305137]
[1743352821424,1.39,602.01,601.61,2.5305137]
[1743352823118,1.39,602.01,601.53,2.5305137]
[1743352824322,1.39,602.01,601.31,0.33260714]
[1743352824723,1.39,602.01,601.39,0.28911939]
[1743352825122,1.39,602.01,601.31,0.33260714]
[1743352826225,1.39,602.01,601.32,0.28918426]
[1743352827429,1.39,602.01,601.31,0.33260714]
[1743352827933,1.39,602.01,601.32,0.28914582]
[1743352830636,1.39,602.01,601.31,0.33260714]
[1743352830831,1.39,602.01,601.32,0.28914822]
[1743352833433,1.39,602.01,601.31,0.33260714]
[1743352833634,1.39,602.01,601.32,0.28919387]
[1743352836440,1.39,602.01,600.54,2.5305137]
[1743352836640,1.39,602.01,600.56,0.33302251]
[1743352836836,1.39,602.01,601.32,0.28930807]
[1743352837139,1.39,602.01,600.56,0.33302251]
[1743352837840,1.39,602.01,600.57,0.28930807]
[1743352838042,1.663,602.04,600.59,0.33300587]
[1743352845944,1.663,602.04,600.88,2.5305137]
[1743352846144,1.663,602.04,600.89,0.33283962]
[1743352850639,2.965,602.03,600.89,0.33283962]
[1743352857746,1.541,602.02,600.89,0.33283962]
[1743352857943,2.671,602.02,600.89,0.33283962]
[1743352859443,0.33222039,602.01,600.89,0.33283962]
[1743352863449,1.83550404,602.01,600.89,0.33283962]
[1743352863649,1.25630827,602.0,600.89,0.33283962]
[1743352864254,1.50267839,601.99,600.89,0.33283962]
[1743352864454,1.50267839,601.98,600.89,0.33283962]
[1743352864753,1.50267839,601.97,600.89,0.33283962]
[1743352864947,1.50267839,601.96,600.89,0.33283962]
[1743352865149,1.83493189,601.95,600.89,0.33283962]
[1743352865347,1.50267839,601.94,600.89,0.33283962]
[1743352865554,1.83494293,601.93,600.89,0.33283962]
[1743352865753,1.83494845,601.92,600.89,0.33283962]
[1743352865952,1.50267839,601.91,600.89,0.33283962]
[1743352866153,1.83495949,601.9,600.89,0.33283962]
[1743352866349,1.83496502,601.89,600.89,0.33283962]
[1743352866557,1.83497054,601.88,600.89,0.33283962]
[1743352866747,0.66490281,601.99,600.89,0.33283962]
[1743352866748,1.83497606,601.87,600.89,0.33283962]
[1743352867049,0.33230319,601.86,600.89,0.33283962]
[1743352867856,3.26469321,601.85,600.89,0.33283962]
[1743352868351,1.25630827,601.84,600.89,0.33283962]
[1743352868653,1.25630827,601.83,600.89,0.33283962]
[1743352869354,1.25630827,601.82,600.89,0.33283962]
[1743352870152,1.25630827,601.81,600.89,0.33283962]
[1743352870658,0.33230319,601.86,600.89,0.33283962]
[1743352871360,1.23801325,601.85,600.89,0.33283962]
[1743352872158,0.33230319,601.86,600.89,0.33283962]
[1743352882270,1.11,601.85,600.89,0.33283962]
[1743352886970,1.367,601.84,600.89,0.33283962]
[1743352888568,1.367,601.84,600.88,0.28930206]
[1743352893574,1.367,601.84,600.47,2.5305137]
[1743352893774,1.367,601.84,600.88,0.2893225]
[1743352893974,1.367,601.84,600.47,2.5305137]
[1743352894271,1.367,601.84,600.88,0.2893201]
[1743352894676,1.367,601.84,600.47,2.5305137]
[1743352894876,1.367,601.84,600.88,2.81982658]
[1743352895269,1.367,601.84,600.88,2.5305137]
[1743352895472,1.367,601.84,600.88,2.81977728]
[1743352896477,1.367,601.84,600.88,2.5305137]
[1743352896678,1.367,601.84,600.77,2.5305137]
[1743352896976,1.367,601.84,600.88,0.28926358]
[1743352897178,1.367,601.84,600.77,2.5305137]
[1743352897772,1.367,601.84,600.72,2.5305137]
[1743352898376,1.424,601.83,600.73,0.28928282]
[1743352899474,1.424,601.83,600.1,2.5305137]
[1743352899475,1.424,601.83,600.7,2.5305137]
[1743352899774,1.424,601.83,600.73,0.28930567]
[1743352899969,2.858,601.83,600.73,0.28930567]
[1743352900772,2.858,601.83,601.05,2.5305137]
[1743352902275,2.858,601.83,601.07,2.5305137]
[1743352902878,3.988,601.83,601.07,2.5305137]
[1743352903379,3.988,601.83,600.87,0.28928282]
[1743352905477,3.988,601.83,600.84,2.5305137]
[1743352905980,3.988,601.83,600.85,0.28931048]
[1743352908580,3.988,601.83,600.84,2.5305137]
[1743352908780,3.988,601.83,600.85,2.5305137]
[1743352908981,3.988,601.83,600.85,2.81982418]
[1743352910180,3.988,601.83,601.04,2.5305137]
[1743352911486,3.988,601.83,601.25,2.5305137]
[1743352912589,3.988,601.83,600.93,0.28928643]
[1743352914594,3.988,601.83,600.88,2.5305137]
[1743352914791,3.988,601.83,600.93,0.28933694]
[1743352917396,3.988,601.83,600.87,2.5305137]
[1743352917801,3.988,601.83,600.93,0.28933814]
[1743352920496,3.988,601.83,600.59,2.5305137]
[1743352920701,3.988,601.83,600.93,0.28939348]
[1743352921099,3.988,601.83,600.6,0.33300033]
[1743352923802,3.988,601.83,600.61,2.81991681]
[1743352923998,3.988,601.83,600.62,0.33298924]
[1743352924503,5.784,601.83,600.62,0.33298924]
[1743352927498,1.24844234,601.82,600.62,0.33298924]
[1743352930509,2.58144234,601.82,600.62,0.33298924]
[1743352930812,2.58144234,601.82,600.62,2.86350294]
[1743352931910,2.58144234,601.82,600.62,0.33298924]
[1743352932711,1.333,601.82,600.62,0.33298924]
[1743352935915,2.72,601.82,600.62,0.33298924]
[1743352946428,4.458,601.82,600.62,0.33298924]
[1743352948532,4.458,601.82,600.65,2.5305137]
[1743352948730,4.458,601.82,600.65,2.86348631]
[1743352949832,4.458,601.82,600.71,2.5305137]
[1743352951839,4.458,601.82,600.61,0.2894019]
[1743352951840,4.458,601.82,600.77,2.5305137]
[1743352952041,4.458,601.82,600.78,0.33290056]
[1743352953537,4.458,601.82,601.02,2.5305137]
[1743352954542,4.458,601.82,600.98,2.5305137]
[1743352956541,4.458,601.82,600.99,0.33278423]
[1743352963552,4.458,601.82,601.05,2.5305137]
[1743352964851,4.458,601.82,601.04,2.5305137]
[1743352966351,4.458,601.82,600.99,0.33278423]
[1743352966751,4.458,601.82,600.97,0.28930927]
[1743352968453,4.458,601.82,600.41,2.5305137]
[1743352968654,4.458,601.82,600.43,0.33309461]
[1743352968854,4.458,601.82,600.97,0.28940912]
[1743352969054,4.458,601.82,600.43,0.33309461]
[1743352970050,4.458,601.82,600.44,0.28940792]
[1743352970251,4.458,601.82,600.46,0.33307797]
[1743352972853,4.458,601.82,600.59,2.5305137]
[1743352973056,4.458,601.82,600.6,0.33300033]
[1743352974956,4.458,601.82,600.62,2.5305137]
[1743352975157,4.458,601.82,600.63,0.3329837]
[1743352975859,4.458,601.82,600.68,2.5305137]
[1743352976057,4.458,601.82,600.69,0.33295044]
[1743352979155,4.458,601.82,600.87,2.5305137]
[1743352980361,4.458,601.82,600.73,2.5305137]
[1743352980656,4.79032527,601.82,600.73,2.5305137]
[1743352981758,4.79032527,601.82,600.72,2.5305137]
[1743352982964,4.79032527,601.82,600.69,0.33295044]
[1743352983466,0.3323308,601.81,600.69,0.33295044]
[1743352984168,0.3323308,601.81,600.79,2.5305137]
[1743352985559,0.3323308,601.81,600.69,0.33295044]
[1743352986166,1.305,601.8,600.69,0.33295044]
[1743352986967,1.199,601.79,600.69,0.33295044]
[1743352987169,0.33234736,601.78,600.69,0.33295044]
[1743352989769,0.28946931,601.77,600.69,0.33295044]
[1743352990971,0.33235841,601.76,600.69,0.33295044]
[1743352992573,1.2439649,601.75,600.69,0.33295044]
[1743352992767,0.33236946,601.74,600.69,0.33295044]
[1743352992973,1.57633436,601.74,600.69,0.33295044]
[1743352993573,1.2439649,601.73,600.69,0.33295044]
[1743352993774,0.3323805,601.72,600.69,0.33295044]
[1743352996168,1.332,601.71,600.69,0.33295044]
[1743352996572,1.66438603,601.71,600.69,0.33295044]
[1743352997974,1.309,601.7,600.69,0.33295044]
[1743352998578,2.55150818,601.7,600.69,0.33295044]
[1743353000082,1.309,601.7,600.69,0.33295044]
[1743353007386,1.24250818,601.69,600.69,0.33295044]
[1743353008880,1.24250818,601.68,600.69,0.33295044]
[1743353009279,1.24250818,601.69,600.69,0.33295044]
[1743353009683,1.24250818,601.68,600.69,0.33295044]
[1743353010284,2.55150818,601.7,600.69,0.33295044]
[1743353011287,1.309,601.7,600.69,0.33295044]
[1743353012888,2.707,601.7,600.69,0.33295044]
[1743353013492,4.231,601.7,600.69,0.33295044]
[1743353026111,4.231,601.7,600.7,2.5305137]
[1743353026306,4.231,601.7,600.71,0.33293935]
[1743353029105,4.231,601.7,600.71,2.86345305]
[1743353030409,4.231,601.7,600.71,0.33293935]
[1743353036918,4.231,601.7,600.76,2.5305137]
[1743353037121,4.231,601.7,600.77,0.3329061]
[1743353038416,4.231,601.7,600.89,2.5305137]
[1743353039425,4.231,601.7,600.92,2.5305137]
[1743353040624,4.231,601.7,600.94,2.5305137]
[1743353043126,4.231,601.7,600.83,2.5305137]
[1743353044533,4.231,601.7,600.81,0.28938987]
[1743353045326,4.231,601.7,600.82,0.33287839]
[1743353049331,5.699,601.7,600.82,0.33287839]
[1743353050134,5.699,601.7,601.0,2.5305137]
[1743353051934,5.699,601.7,600.99,2.5305137]
[1743353053335,5.699,601.7,600.97,2.5305137]
[1743353053537,5.699,601.7,600.98,0.33278977]
[1743353059342,5.699,601.7,601.02,2.5305137]
[1743353059541,5.699,601.7,601.03,0.33276209]
[1743353069253,5.699,601.7,601.01,0.28933814]
[1743353070546,5.699,601.7,600.82,2.5305137]
[1743353070748,5.699,601.7,601.01,0.28939589]
[1743353071152,5.699,601.7,600.82,2.5305137]
[1743353071352,5.699,601.7,600.8,2.5305137]
[1743353072755,5.699,601.7,600.72,2.5305137]
[1743353073250,5.699,601.7,600.73,0.28940792]
[1743353076557,5.699,601.7,600.72,2.5305137]
[1743353077057,5.699,601.7,596.29,2.79327268]
[1743353077058,5.699,601.7,600.68,2.5305137]
[1743353078259,5.699,601.7,600.29,2.5305137]
[1743353078260,5.699,601.7,600.67,2.5305137]
[1743353079261,5.699,601.7,600.68,0.28941394]
[1743353079657,5.699,601.7,600.67,2.5305137]
[1743353079857,5.699,601.7,600.76,2.5305137]
[1743353082059,5.699,601.7,600.82,2.5305137]
[1743353083069,5.699,601.7,600.75,0.28936942]
[1743353084267,5.699,601.7,600.76,0.33291164]
[1743353102474,5.699,601.7,600.77,2.5305137]
[1743353103681,5.699,601.7,600.84,2.5305137]
[1743353106382,5.699,601.7,600.8,2.5305137]
[1743353107878,5.699,601.7,600.82,2.5305137]
[1743353108689,5.699,601.7,600.81,2.5305137]
[1743353109681,5.699,601.7,600.91,2.5305137]
[1743353112779,5.699,601.7,600.92,2.5305137]
[1743353113885,5.699,601.7,600.89,2.5305137]
[1743353115986,5.699,601.7,600.76,2.86342534]
[1743353115987,5.699,601.7,600.87,2.5305137]
[1743353117288,5.699,601.7,600.85,2.81990838]
[1743353118487,5.699,601.7,600.85,2.5305137]
[1743353118886,5.699,601.7,600.85,2.81991079]
[1743353120590,5.699,601.7,600.85,0.28939709]
[1743353121689,5.699,601.7,600.76,0.33291164]
[1743353122883,5.699,601.7,600.77,0.28945125]
[1743353124890,1.25029686,601.69,600.77,0.28945125]
[1743353125887,1.25029686,601.68,600.77,0.28945125]
[1743353126291,1.849438,601.67,600.77,0.28945125]
[1743353126486,1.84944352,601.66,600.77,0.28945125]
[1743353126684,0.33241365,601.66,600.77,0.28945125]
[1743353127088,1.25029686,601.65,600.77,0.28945125]
[1743353127288,0.3324247,601.64,600.77,0.28945125]
[1743353127691,2.37329686,601.63,599.8,2.5305137]
[1743353127886,2.37329686,601.63,600.77,0.28950543]
[1743353128290,1.25029686,601.62,599.8,2.5305137]
[1743353128489,1.25029686,601.62,599.82,0.33343336]
[1743353128992,3.022,601.61,599.83,0.2895789]
[1743353129191,4.27229686,601.61,599.83,0.2895789]
[1743353129392,4.27229686,601.61,599.84,2.5305137]
[1743353129790,1.25029686,601.6,599.84,2.5305137]
[1743353130291,1.25029686,601.59,599.84,2.5305137]
[1743353130492,1.25029686,601.59,600.15,2.5305137]
[1743353131089,1.25029686,601.59,600.17,0.33323891]
[1743353131287,3.022,601.61,600.17,0.33323891]
[1743353132893,3.022,601.61,600.19,2.5305137]
[1743353133093,3.022,601.61,600.21,0.3332167]
[1743353137695,3.022,601.61,600.47,2.5305137]
[1743353138910,3.022,601.61,600.48,0.33306687]
[1743353139314,3.022,601.61,600.53,2.5305137]
[1743353139518,3.022,601.61,600.54,0.3330336]
[1743353143216,3.022,601.61,600.55,2.5305137]
[1743353143518,3.022,601.61,600.56,0.33302251]
[1743353144122,3.022,601.61,600.56,2.86353621]
[1743353145913,1.278,601.6,600.56,0.33302251]
[1743353149614,1.364,601.59,600.56,0.33302251]
[1743353151319,1.364,601.59,600.64,2.5305137]
[1743353151511,1.364,601.59,600.66,0.33296706]
[1743353156621,1.148,601.58,600.66,0.33296706]
[1743353161823,2.588,601.58,600.66,0.33296706]
[1743353168632,2.588,601.58,600.73,2.5305137]
[1743353169625,2.588,601.58,600.88,2.5305137]
[1743353170630,2.588,601.58,600.68,0.28939709]
[1743353170631,4.287,601.58,600.93,2.5305137]
[1743353172829,4.287,601.58,600.88,2.5305137]